fUSD/lending_fUSD_20260615
["ID","MTS","AMOUNT","RATE_DAILY","PERIOD"]
[425115619,1781529043000,-500.0,0.00020218,2]
[425115627,1781529043000,-151.0,0.00020218,2]
[425115628,1781529043000,-152.0,0.00020218,2]
[425115620,1781529043000,-151.0,0.00020218,2]
[425115629,1781529043000,-721.12765534,0.00020218,2]
[425115621,1781529043000,-151.0,0.00020218,2]
[425115630,1781529043000,-1536.04360648,0.00020218,2]
[425115622,1781529043000,-151.0,0.00020218,2]
[425115624,1781529043000,-1481.2378076,0.00020218,2]
[425115623,1781529043000,-154.67963625,0.00020218,2]
[425115626,1781529043000,-500.0,0.00020218,2]
[425115625,1781529043000,-151.0,0.00020218,2]
[425115631,1781529043000,-500.0,0.00020218,2]
[425115632,1781529043000,-151.0,0.00020218,2]
[425115633,1781529043000,-151.0,0.00020218,2]
[425115638,1781529043000,-152.0,0.00020218,2]
[425115640,1781529043000,-1592.87721992,0.00020218,2]
[425115635,1781529043000,-152.0,0.00020218,2]
[425115636,1781529043000,-500.0,0.00020218,2]
[425115639,1781529043000,-151.0,0.00020218,2]
[425115637,1781529043000,-500.0,0.00020218,2]
[425115641,1781529043000,-500.0,0.00020218,2]
[425115582,1781529043000,-2374.0,0.0002005,2]
[425115608,1781529043000,-1377.42282658,0.00020218,2]
[425115617,1781529043000,-151.0,0.00020218,2]
[425115634,1781529043000,-500.0,0.00020218,2]
[425115612,1781529043000,-151.0,0.00020218,2]
[425115611,1781529043000,-285.75873744,0.00020218,2]
[425115591,1781529043000,-1107.63007,0.00020218,2]
[425115583,1781529043000,-927.42,0.000201,2]
[425115590,1781529043000,-151.0,0.00020218,2]
[425115592,1781529043000,-151.0,0.00020218,2]
[425115587,1781529043000,-1030.0,0.00020218,2]
[425115585,1781529043000,-321.0,0.00020136,2]
[425115584,1781529043000,-300.0,0.000201,10]
[425115588,1781529043000,-200.0,0.00020218,2]
[425115589,1781529043000,-1068.11,0.00020218,2]
[425115594,1781529043000,-151.0,0.00020218,2]
[425115597,1781529043000,-151.0,0.00020218,2]
[425115605,1781529043000,-1328.27659266,0.00020218,2]
[425115586,1781529043000,-254.37796769,0.000202,2]
[425115602,1781529043000,-151.0,0.00020218,2]
[425115614,1781529043000,-2080.17592889,0.00020218,2]
[425115604,1781529043000,-151.0,0.00020218,2]
[425115613,1781529043000,-1428.38747117,0.00020218,2]
[425115616,1781529043000,-209.40437684,0.00020218,2]
[425115600,1781529043000,-578.20924308,0.00020218,2]
[425115598,1781529043000,-1235.18214925,0.00020218,2]
[425115606,1781529043000,-174.61919141,0.00020218,2]
[425115601,1781529043000,-209.40437684,0.00020218,2]
[425115603,1781529043000,-1280.88388877,0.00020218,2]
[425115596,1781529043000,-404.46092719,0.00020218,2]
[425115595,1781529043000,-1191.11104074,0.00020218,2]
[425115593,1781529043000,-1148.61238259,0.00020218,2]
[425115599,1781529043000,-151.0,0.00020218,2]
[425115665,1781529044000,-500.0,0.00020218,2]
[425115667,1781529044000,-152.0,0.00020218,2]
[425115671,1781529044000,-500.0,0.00020218,2]
[425115669,1781529044000,-1910.18787185,0.00020218,2]
[425115680,1781529044000,-151.0,0.00020218,2]
[425115668,1781529044000,-151.0,0.00020218,2]
[425115679,1781529044000,-152.0,0.00020218,2]
[425115670,1781529044000,-500.0,0.00020218,2]
[425115676,1781529044000,-500.0,0.00020218,2]
[425115682,1781529044000,-2054.15682156,0.00020218,2]
[425115678,1781529044000,-500.0,0.00020218,2]
[425115675,1781529044000,-151.0,0.00020218,2]
[425115677,1781529044000,-1980.8648231,0.00020218,2]
[425115673,1781529044000,-151.0,0.00020218,2]
[425115686,1781529044000,-500.0,0.00020218,2]
[425115685,1781529044000,-151.0,0.00020218,2]
[425115662,1781529044000,-151.0,0.00020218,2]
[425115689,1781529044000,-151.0,0.00020218,2]
[425115674,1781529044000,-152.0,0.00020218,2]
[425115659,1781529044000,-500.0,0.00020218,2]
[425115646,1781529044000,-500.0,0.00020218,2]
[425115664,1781529044000,-500.0,0.00020218,2]
[425115681,1781529044000,-151.0,0.00020218,2]
[425115643,1781529044000,-152.0,0.00020218,2]
[425115642,1781529044000,-500.0,0.00020218,2]
[425115654,1781529044000,-151.0,0.00020218,2]
[425115652,1781529044000,-500.0,0.00020218,2]
[425115645,1781529044000,-1651.81367706,0.00020218,2]
[425115644,1781529044000,-151.0,0.00020218,2]
[425115651,1781529044000,-500.0,0.00020218,2]
[425115647,1781529044000,-500.0,0.00020218,2]
[425115650,1781529044000,-152.0,0.00020218,2]
[425115648,1781529044000,-151.0,0.00020218,2]
[425115649,1781529044000,-1712.93078311,0.00020218,2]
[425115660,1781529044000,-151.0,0.00020218,2]
[425115656,1781529044000,-151.0,0.00020218,2]
[425115666,1781529044000,-151.0,0.00020218,2]
[425115657,1781529044000,-1776.30922209,0.00020218,2]
[425115661,1781529044000,-152.0,0.00020218,2]
[425115655,1781529044000,-152.0,0.00020218,2]
[425115663,1781529044000,-1842.0326633,0.00020218,2]
[425115658,1781529044000,-500.0,0.00020218,2]
[425115688,1781529044000,-151.0,0.00020218,2]
[425115684,1781529044000,-152.0,0.00020218,2]
[425115683,1781529044000,-500.0,0.00020218,2]
[425115709,1781529044000,-254.37796769,0.000206,2]
[425115710,1781529044000,-285.75873744,0.00020603,2]
[425115715,1781529044000,-151.0,0.00020658,2]
[425115716,1781529044000,-199.0,0.0002069,2]
[425115718,1781529044000,-151.0,0.00020713,2]
[425115717,1781529044000,-285.75873744,0.00020713,2]
[425115720,1781529044000,-404.46092719,0.00020766,2]
[425115719,1781529044000,-200.0,0.00020766,2]
[425115721,1781529044000,-151.0,0.00020766,2]
[425115723,1781529044000,-181.08010149,0.00020766,2]
[425115726,1781529044000,-217.15233878,0.00020766,2]
[425115725,1781529044000,-2157.14243826,0.00020766,2]
[425115724,1781529044000,-278.27669356,0.00020766,2]
[425115727,1781529044000,-151.0,0.00020766,2]
[425115731,1781529044000,-254.37796769,0.000208,2]
[425115730,1781529044000,-151.0,0.00020768,2]
[425115728,1781529044000,-154.67963625,0.00020766,2]
[425115729,1781529044000,-285.75873756,0.00020768,2]
[425115691,1781529044000,-151.0,0.00020273,2]
[425115712,1781529044000,-199914.9717554,0.00020656,2]
[425115711,1781529044000,-151.0,0.00020603,2]
[425115722,1781529044000,-217.15233878,0.00020766,2]
[425115713,1781529044000,-5227.1982453,0.00020656,2]
[425115690,1781529044000,-285.75873744,0.00020273,2]
[425115708,1781529044000,-151.0,0.00020548,2]
[425115687,1781529044000,-151.0,0.00020218,2]
[425115693,1781529044000,-501.0,0.00020296,4]
[425115692,1781529044000,-350.0,0.0002028,2]
[425115695,1781529044000,-285.75873744,0.00020328,2]
[425115694,1781529044000,-640.28731075,0.00020323,2]
[425115697,1781529044000,-845.9,0.00020381,2]
[425115698,1781529044000,-285.75873744,0.00020383,2]
[425115696,1781529044000,-151.0,0.00020328,2]
[425115699,1781529044000,-151.0,0.00020383,2]
[425115701,1781529044000,-285.75873744,0.00020438,2]
[425115702,1781529044000,-151.0,0.00020438,2]
[425115703,1781529044000,-285.75873744,0.00020493,2]
[425115706,1781529044000,-9978.39,0.00020548,2]
[425115714,1781529044000,-285.75873744,0.00020658,2]
[425115707,1781529044000,-285.75873744,0.00020548,2]
[425115700,1781529044000,-254.37796769,0.000204,2]
[425115705,1781529044000,-151.0,0.00020545,2]
[425115704,1781529044000,-151.0,0.00020493,2]
[425115760,1781529045000,-187.78006524,0.00021314,2]
[425115766,1781529045000,-2179.1603021,0.00021477,2]
[425115776,1781529045000,-151.0,0.00021652,2]
[425115767,1781529045000,-58563.70750585,0.000215,2]
[425115765,1781529045000,-1942.64598707,0.000214,2]
[425115758,1781529045000,-151.0,0.00021314,2]
[425115761,1781529045000,-2236.95670847,0.00021314,2]
[425115759,1781529045000,-225.18697532,0.00021314,2]
[425115771,1781529045000,-500.0,0.00021548,7]
[425115762,1781529045000,-225.18697532,0.00021314,2]
[425115770,1781529045000,-299.0,0.00021517,5]
[425115782,1781529045000,-200.0,0.00021862,2]
[425115769,1781529045000,-321.0,0.00021506,2]
[425115773,1781529045000,-927.42,0.000216,2]
[425115774,1781529045000,-1942.64598707,0.000216,2]
[425115768,1781529045000,-226.05413936,0.000215,2]
[425115772,1781529045000,-217.15233878,0.00021587,2]
[425115778,1781529045000,-3195.0,0.00021667,3]
[425115777,1781529045000,-17029.85,0.00021654,2]
[425115780,1781529045000,-1275.0,0.00021689,2]
[425115783,1781529045000,-404.46092719,0.00021862,2]
[425115779,1781529045000,-3558.0,0.00021689,2]
[425115756,1781529045000,-200.0,0.00021314,2]
[425115775,1781529045000,-176.676302,0.00021642,2]
[425115754,1781529045000,-192.54,0.00021205,2]
[425115738,1781529045000,-150.0,0.00021,2]
[425115763,1781529045000,-154.67963625,0.00021314,2]
[425115732,1781529045000,-274.81922984,0.000208,30]
[425115733,1781529045000,-321.0,0.00020821,2]
[425115735,1781529045000,-469962.0,0.00021,30]
[425115734,1781529045000,-151.0,0.00020997,2]
[425115736,1781529045000,-941.312626,0.00021,2]
[425115739,1781529045000,-189.0,0.0002105,2]
[425115741,1781529045000,-546.0,0.0002105,2]
[425115742,1781529045000,-239.0,0.0002105,2]
[425115737,1781529045000,-1942.64598707,0.00021,2]
[425115740,1781529045000,-156.0,0.0002105,2]
[425115744,1781529045000,-155.0,0.0002105,2]
[425115743,1781529045000,-969.0,0.0002105,2]
[425115747,1781529045000,-249.0,0.0002105,2]
[425115753,1781529045000,-1942.64598707,0.000212,2]
[425115748,1781529045000,-282.0,0.0002105,2]
[425115746,1781529045000,-153.0,0.0002105,2]
[425115745,1781529045000,-382.0,0.0002105,2]
[425115752,1781529045000,-372.499747,0.0002119,7]
[425115749,1781529045000,-232.0,0.0002105,2]
[425115750,1781529045000,-2374.0,0.0002105,2]
[425115751,1781529045000,-501.0,0.00021062,4]
[425115755,1781529045000,-500.0,0.00021274,7]
[425115757,1781529045000,-404.46092719,0.00021314,2]
[425115764,1781529045000,-151.0,0.00021314,2]
[425115784,1781529045000,-151.0,0.00021862,2]
[425115785,1781529045000,-280.16800983,0.00021862,2]
[425115786,1781529045000,-194.72792766,0.00021862,2]
[425115820,1781529045000,-150.0,0.00021918,2]
[425115816,1781529045000,-150.0,0.00021918,2]
[425115819,1781529045000,-150.0,0.00021918,2]
[425115817,1781529045000,-150.0,0.00021918,2]
[425115818,1781529045000,-150.0,0.00021918,2]
[425115833,1781529045000,-150.0,0.00021918,2]
[425115822,1781529045000,-150.0,0.00021918,2]
[425115827,1781529045000,-150.0,0.00021918,2]
[425115825,1781529045000,-150.0,0.00021918,2]
[425115831,1781529045000,-150.0,0.00021918,2]
[425115828,1781529045000,-150.0,0.00021918,2]
[425115824,1781529045000,-150.0,0.00021918,2]
[425115829,1781529045000,-150.0,0.00021918,2]
[425115826,1781529045000,-150.0,0.00021918,2]
[425115830,1781529045000,-150.0,0.00021918,2]
[425115832,1781529045000,-150.0,0.00021918,2]
[425115836,1781529045000,-150.0,0.00021918,2]
[425115834,1781529045000,-150.0,0.00021918,2]
[425115838,1781529045000,-150.0,0.00021918,2]
[425115835,1781529045000,-150.0,0.00021918,2]
[425115837,1781529045000,-150.0,0.00021918,2]
[425115841,1781529045000,-150.0,0.00021918,2]
[425115781,1781529045000,-501.0,0.00021827,5]
[425115812,1781529045000,-150.0,0.00021918,2]
[425115809,1781529045000,-150.0,0.00021918,2]
[425115840,1781529045000,-150.0,0.00021918,2]
[425115810,1781529045000,-150.0,0.00021918,2]
[425115815,1781529045000,-150.0,0.00021918,2]
[425115788,1781529045000,-154.67963625,0.00021862,2]
[425115787,1781529045000,-233.5188934,0.00021862,2]
[425115789,1781529045000,-151.0,0.00021862,2]
[425115794,1781529045000,-1589.22,0.00021918,2]
[425115791,1781529045000,-1942.64598707,0.000219,2]
[425115795,1781529045000,-150.0,0.00021918,2]
[425115792,1781529045000,-5000.0,0.00021918,2]
[425115793,1781529045000,-500.0,0.00021918,8]
[425115796,1781529045000,-150.0,0.00021918,2]
[425115798,1781529045000,-150.0,0.00021918,2]
[425115790,1781529045000,-2319.72410669,0.00021862,2]
[425115806,1781529045000,-150.0,0.00021918,2]
[425115800,1781529045000,-150.0,0.00021918,2]
[425115801,1781529045000,-150.0,0.00021918,2]
[425115799,1781529045000,-150.0,0.00021918,2]
[425115797,1781529045000,-150.0,0.00021918,2]
[425115802,1781529045000,-150.0,0.00021918,2]
[425115804,1781529045000,-150.0,0.00021918,2]
[425115803,1781529045000,-150.0,0.00021918,2]
[425115805,1781529045000,-150.0,0.00021918,2]
[425115814,1781529045000,-150.0,0.00021918,2]
[425115808,1781529045000,-150.0,0.00021918,2]
[425115807,1781529045000,-150.0,0.00021918,2]
[425115876,1781529046000,-500.0,0.00022,3]
[425115877,1781529046000,-5162.4017348,0.00022,30]
[425115873,1781529046000,-10000.0,0.00022,10]
[425115868,1781529046000,-150.0,0.00021918,2]
[425115871,1781529046000,-505.15726097,0.00021999,2]
[425115869,1781529046000,-181.24391002,0.00021918,2]
[425115874,1781529046000,-200.0,0.00022,10]
[425115870,1781529046000,-206.0,0.00021976,2]
[425115872,1781529046000,-1156.34,0.00022,10]
[425115875,1781529046000,-198.8,0.00022,10]
[425115879,1781529046000,-300.0,0.00022,2]
[425115880,1781529046000,-941.312626,0.00022,2]
[425115881,1781529046000,-450.0,0.00022,2]
[425115878,1781529046000,-305700.03563777,0.00022,4]
[425115884,1781529046000,-150.0,0.00022025,2]
[425115883,1781529046000,-150.0,0.00022025,2]
[425115886,1781529046000,-189.0,0.0002205,2]
[425115887,1781529046000,-167.0,0.0002205,2]
[425115885,1781529046000,-150.0,0.00022025,2]
[425115867,1781529046000,-150.0,0.00021918,2]
[425115893,1781529046000,-156.57339269,0.0002205,2]
[425115882,1781529046000,-1422.79,0.00022,2]
[425115866,1781529046000,-150.0,0.00021918,2]
[425115849,1781529046000,-150.0,0.00021918,2]
[425115859,1781529046000,-150.0,0.00021918,2]
[425115888,1781529046000,-546.0,0.0002205,2]
[425115842,1781529046000,-150.0,0.00021918,2]
[425115845,1781529046000,-150.0,0.00021918,2]
[425115854,1781529046000,-150.0,0.00021918,2]
[425115848,1781529046000,-150.0,0.00021918,2]
[425115847,1781529046000,-150.0,0.00021918,2]
[425115846,1781529046000,-150.0,0.00021918,2]
[425115855,1781529046000,-150.0,0.00021918,2]
[425115844,1781529046000,-150.0,0.00021918,2]
[425115850,1781529046000,-150.0,0.00021918,2]
[425115853,1781529046000,-150.0,0.00021918,2]
[425115851,1781529046000,-150.0,0.00021918,2]
[425115852,1781529046000,-150.0,0.00021918,2]
[425115857,1781529046000,-150.0,0.00021918,2]
[425115856,1781529046000,-150.0,0.00021918,2]
[425115860,1781529046000,-150.0,0.00021918,2]
[425115858,1781529046000,-150.0,0.00021918,2]
[425115864,1781529046000,-150.0,0.00021918,2]
[425115861,1781529046000,-150.0,0.00021918,2]
[425115863,1781529046000,-150.0,0.00021918,2]
[425115862,1781529046000,-150.0,0.00021918,2]
[425115865,1781529046000,-150.0,0.00021918,2]
[425115891,1781529046000,-155.0,0.0002205,2]
[425115889,1781529046000,-239.0,0.0002205,2]
[425115932,1781529046000,-200.0,0.00022958,2]
[425115921,1781529046000,-501.0,0.00022593,6]
[425115920,1781529046000,-399.0,0.00022552,5]
[425115922,1781529046000,-350.0,0.00022635,4]
[425115924,1781529046000,-2333.87,0.00022691,2]
[425115925,1781529046000,-7178.7,0.00022691,2]
[425115926,1781529046000,-640.28731075,0.00022769,2]
[425115927,1781529046000,-1315.61,0.0002289,120]
[425115928,1781529046000,-1647.35,0.000229,14]
[425115929,1781529046000,-599.60298507,0.00022957,2]
[425115934,1781529046000,-269.57145109,0.00022958,2]
[425115931,1781529046000,-747.80937859,0.00022957,2]
[425115930,1781529046000,-151.0,0.00022957,2]
[425115933,1781529046000,-404.46092719,0.00022958,2]
[425115935,1781529046000,-209.40437684,0.00022958,2]
[425115939,1781529046000,-164.38022837,0.00023019,2]
[425115938,1781529046000,-941.312626,0.00023,2]
[425115937,1781529046000,-2494.55939288,0.00022958,2]
[425115941,1781529046000,-554.0,0.0002305,2]
[425115936,1781529046000,-157.78306428,0.00022958,2]
[425115890,1781529046000,-969.0,0.0002205,2]
[425115940,1781529046000,-198.0,0.0002305,2]
[425115917,1781529046000,-1589.22,0.00022505,2]
[425115919,1781529046000,-4793.0,0.00022533,3]
[425115923,1781529046000,-1315.61,0.00022644,120]
[425115916,1781529046000,-2000.0,0.000225,7]
[425115892,1781529046000,-382.0,0.0002205,2]
[425115894,1781529046000,-249.0,0.0002205,2]
[425115895,1781529046000,-282.0,0.0002205,2]
[425115896,1781529046000,-232.0,0.0002205,2]
[425115897,1781529046000,-2374.0,0.0002205,2]
[425115900,1781529046000,-1315.61,0.00022151,120]
[425115904,1781529046000,-200.0,0.0002241,2]
[425115918,1781529046000,-251.03,0.00022516,2]
[425115899,1781529046000,-152.0,0.00022139,4]
[425115901,1781529046000,-321.0,0.00022191,2]
[425115903,1781529046000,-1315.61,0.00022397,120]
[425115902,1781529046000,-845.9,0.00022353,2]
[425115898,1781529046000,-244.69241804,0.0002211,2]
[425115905,1781529046000,-404.46092719,0.0002241,2]
[425115907,1781529046000,-201.93286098,0.0002241,2]
[425115906,1781529046000,-151.0,0.0002241,2]
[425115912,1781529046000,-874.58,0.00022466,2]
[425115908,1781529046000,-215.29850387,0.0002241,2]
[425115909,1781529046000,-151.0,0.0002241,2]
[425115910,1781529046000,-2405.55389863,0.0002241,2]
[425115914,1781529046000,-28492.84453341,0.000225,2]
[425115911,1781529046000,-1346.9,0.00022466,2]
[425115913,1781529046000,-393.74,0.00022466,2]
[425115979,1781529047000,-160.0,0.00024,10]
[425115974,1781529047000,-5000.0,0.00024,2]
[425115977,1781529047000,-500.0,0.00024,2]
[425115970,1781529047000,-500.0,0.0002374,7]
[425115976,1781529047000,-941.312626,0.00024,2]
[425115972,1781529047000,-624.48000323,0.00023963,2]
[425115971,1781529047000,-1315.61,0.00023877,120]
[425115973,1781529047000,-25000.0,0.00023991,7]
[425115975,1781529047000,-4121.0,0.00024,2]
[425115987,1781529047000,-501.0,0.00024123,7]
[425115968,1781529047000,-1315.61,0.0002363,120]
[425115986,1781529047000,-1315.61,0.00024123,120]
[425115992,1781529047000,-845.9,0.00024324,2]
[425115981,1781529047000,-200.0,0.00024054,2]
[425115982,1781529047000,-404.46092719,0.00024054,2]
[425115983,1781529047000,-225.18697532,0.00024054,2]
[425115984,1781529047000,-2682.57183977,0.00024054,2]
[425115985,1781529047000,-151.0,0.00024088,2]
[425115989,1781529047000,-8000.0,0.00024234,5]
[425115988,1781529047000,-151.0,0.00024159,2]
[425115990,1781529047000,-1589.22,0.00024266,2]
[425115995,1781529047000,-208.44106741,0.000246,4]
[425115996,1781529047000,-200.0,0.00024602,2]
[425115978,1781529047000,-25000.0,0.00024,7]
[425115980,1781529047000,-160.0,0.00024,7]
[425115969,1781529047000,-1589.22,0.00023679,2]
[425115944,1781529047000,-169.0,0.0002305,2]
[425115961,1781529047000,-404.46092719,0.00023506,2]
[425115943,1781529047000,-987.78741095,0.0002305,2]
[425115942,1781529047000,-255.28150736,0.0002305,2]
[425115945,1781529047000,-389.08739407,0.0002305,2]
[425115947,1781529047000,-285.0,0.0002305,2]
[425115946,1781529047000,-252.0,0.0002305,2]
[425115948,1781529047000,-243.81399214,0.0002305,2]
[425115950,1781529047000,-1589.22,0.00023092,2]
[425115952,1781529047000,-150.0,0.0002326,21]
[425115951,1781529047000,-1315.61,0.00023137,120]
[425115949,1781529047000,-2391.33180724,0.0002305,2]
[425115953,1781529047000,-202.52,0.00023288,2]
[425115954,1781529047000,-150.0,0.00023288,2]
[425115955,1781529047000,-17029.85,0.00023309,7]
[425115957,1781529047000,-1315.61,0.00023384,120]
[425115956,1781529047000,-501.0,0.00023358,7]
[425115964,1781529047000,-250.0,0.00023562,5]
[425115967,1781529047000,-6390.0,0.00023617,3]
[425115965,1781529047000,-499.0,0.00023586,5]
[425115966,1781529047000,-927.42,0.000236,7]
[425115959,1781529047000,-317.964483,0.00023487,7]
[425115960,1781529047000,-200.0,0.00023506,2]
[425115958,1781529047000,-500.0,0.00023466,7]
[425115963,1781529047000,-2586.85809042,0.00023506,2]
[425115962,1781529047000,-217.15233878,0.00023506,2]
[425115998,1781529047000,-233.5188934,0.00024602,2]
[425116043,1781529047000,-369.825974,0.00024658,2]
[425115993,1781529047000,-1315.61,0.0002437,120]
[425116024,1781529047000,-151.0,0.00024658,2]
[425116023,1781529047000,-151.0,0.00024658,2]
[425116026,1781529047000,-369.825974,0.00024658,2]
[425116025,1781529047000,-292.872257,0.00024658,2]
[425116027,1781529047000,-369.825974,0.00024658,2]
[425116028,1781529047000,-369.825974,0.00024658,2]
[425116029,1781529047000,-369.825974,0.00024658,2]
[425116032,1781529047000,-369.825974,0.00024658,2]
[425116035,1781529047000,-369.825974,0.00024658,2]
[425116037,1781529047000,-369.825974,0.00024658,2]
[425116036,1781529047000,-369.825974,0.00024658,2]
[425116033,1781529047000,-369.825974,0.00024658,2]
[425116042,1781529047000,-369.825974,0.00024658,2]
[425116038,1781529047000,-369.825974,0.00024658,2]
[425116040,1781529047000,-369.825974,0.00024658,2]
[425116039,1781529047000,-369.825974,0.00024658,2]
[425116041,1781529047000,-369.825974,0.00024658,2]
[425116048,1781529047000,-150.0,0.00024658,2]
[425116044,1781529047000,-369.825974,0.00024658,2]
[425116045,1781529047000,-369.825972,0.00024658,2]
[425116046,1781529047000,-1208.67,0.00024658,2]
[425116047,1781529047000,-1000.0,0.00024658,2]
[425115994,1781529047000,-152.0,0.00024488,5]
[425116031,1781529047000,-369.825974,0.00024658,2]
[425116030,1781529047000,-369.825974,0.00024658,2]
[425116034,1781529047000,-369.825974,0.00024658,2]
[425116022,1781529047000,-151.0,0.00024658,2]
[425115991,1781529047000,-2266.45,0.00024312,2]
[425116021,1781529047000,-236.86638153,0.00024658,2]
[425115997,1781529047000,-404.46092719,0.00024602,2]
[425116000,1781529047000,-1315.61,0.00024616,120]
[425116005,1781529047000,-236.866385,0.00024658,2]
[425115999,1781529047000,-2781.82699784,0.00024602,2]
[425116001,1781529047000,-499.0,0.00024621,5]
[425116008,1781529047000,-236.866385,0.00024658,2]
[425116004,1781529047000,-236.866385,0.00024658,2]
[425116009,1781529047000,-236.866385,0.00024658,2]
[425116002,1781529047000,-236.866385,0.00024658,2]
[425116007,1781529047000,-236.866385,0.00024658,2]
[425116006,1781529047000,-236.866385,0.00024658,2]
[425116015,1781529047000,-236.866385,0.00024658,2]
[425116011,1781529047000,-236.866385,0.00024658,2]
[425116019,1781529047000,-236.866385,0.00024658,2]
[425116010,1781529047000,-236.866385,0.00024658,2]
[425116012,1781529047000,-236.866385,0.00024658,2]
[425116020,1781529047000,-236.866385,0.00024658,2]
[425116014,1781529047000,-236.866385,0.00024658,2]
[425116017,1781529047000,-236.866385,0.00024658,2]
[425116016,1781529047000,-236.866385,0.00024658,2]
[425116013,1781529047000,-236.866385,0.00024658,2]
[425116003,1781529047000,-236.866385,0.00024658,2]
[425116018,1781529047000,-236.866385,0.00024658,2]
[425116080,1781529048000,-621.72231253,0.00025,2]
[425116084,1781529048000,-2239.88692792,0.00025,2]
[425116081,1781529048000,-5712.96733662,0.00025,21]
[425116078,1781529048000,-1816.89102188,0.00025,2]
[425116079,1781529048000,-540.0,0.00025,2]
[425116086,1781529048000,-4878.37652846,0.00025,2]
[425116082,1781529048000,-3097.8599384,0.00025,2]
[425116087,1781529048000,-961405.75880451,0.00025,2]
[425116085,1781529048000,-170.31867572,0.00025,2]
[425116089,1781529048000,-301.89646006,0.00025,2]
[425116083,1781529048000,-114631.61946283,0.00025,7]
[425116088,1781529048000,-1128.31,0.00025,7]
[425116103,1781529048000,-800.0,0.00025,9]
[425116093,1781529048000,-596.91476168,0.00025,7]
[425116095,1781529048000,-800.0,0.00025,9]
[425116091,1781529048000,-161050.40019257,0.00025,2]
[425116092,1781529048000,-214.66,0.00025,2]
[425116090,1781529048000,-18523.17105558,0.00025,2]
[425116096,1781529048000,-800.0,0.00025,9]
[425116097,1781529048000,-160.0,0.00025,30]
[425116098,1781529048000,-350.53557048,0.00025,9]
[425116094,1781529048000,-800.0,0.00025,9]
[425116101,1781529048000,-800.0,0.00025,9]
[425116102,1781529048000,-800.0,0.00025,9]
[425116077,1781529048000,-211.20975411,0.00025,2]
[425116099,1781529048000,-2000.0,0.00025,7]
[425116073,1781529048000,-1124.73,0.00025,7]
[425116051,1781529048000,-7988.0,0.000247,3]
[425116072,1781529048000,-150.0,0.00025,2]
[425116049,1781529048000,-3558.0,0.00024689,2]
[425116050,1781529048000,-1275.0,0.00024689,2]
[425116052,1781529048000,-2004.2953,0.000247,2]
[425116053,1781529048000,-9803.8659,0.000247,2]
[425116054,1781529048000,-1422.79,0.000247,7]
[425116055,1781529048000,-10000.71670008,0.000248,2]
[425116062,1781529048000,-1589.22,0.00024853,2]
[425116061,1781529048000,-2327.0,0.00024843,3]
[425116059,1781529048000,-250.0,0.00024809,2]
[425116063,1781529048000,-1315.61,0.00024863,120]
[425116057,1781529048000,-250.0,0.00024809,2]
[425116060,1781529048000,-287.56680205,0.00024809,2]
[425116056,1781529048000,-350.0,0.00024802,6]
[425116058,1781529048000,-250.0,0.00024809,2]
[425116064,1781529048000,-2491.58515556,0.00024863,2]
[425116105,1781529048000,-800.0,0.00025,9]
[425116066,1781529048000,-501.0,0.00024889,8]
[425116074,1781529048000,-1011.78,0.00025,7]